[Event "Rapid Tournament (RAP)"]
[Site "Biel, Switzerland"]
[Date "2026.07.12"]
[Round "4.4"]
[White "Sasikiran, Krishnan"]
[Black "Lu, Miaoyi"]
[Result "1-0"]
[TimeControl "15 + 5"]
[WhiteTitle "-"]
[BlackTitle "-"]
[WhiteFideId "5004985"]
[BlackFideId "8618020"]
[WhiteElo "2520"]
[BlackElo "2309"]

1. e4 {[%clk 00:15:07]} {[%emt 00:00:02]} e5 {[%clk 00:15:09]} {[%emt
00:00:04]} 2. Nf3 {[%clk 00:15:10]} Nc6 {[%clk 00:15:12]} {[%emt 00:00:02]} 3.
Bb5 {[%clk 00:15:12]} {[%emt 00:00:04]} Nf6 {[%clk 00:15:15]} 4. d3 {[%clk
00:14:33]} {[%emt 00:00:43]} Bc5 {[%clk 00:15:18]} {[%emt 00:00:02]} 5. Ba4
{[%clk 00:14:11]} {[%emt 00:00:27]} a6 {[%clk 00:14:52]} {[%emt 00:00:32]} 6.
c3 {[%clk 00:13:44]} {[%emt 00:00:31]} b5 {[%clk 00:14:40]} {[%emt 00:00:17]} 7.
Bb3 {[%clk 00:13:42]} {[%emt 00:00:07]} d6 {[%clk 00:14:38]} {[%emt 00:00:08]}
8. a4 {[%clk 00:13:10]} {[%emt 00:00:37]} Rb8 {[%clk 00:14:02]} {[%emt
00:00:40]} 9. O-O {[%clk 00:12:57]} {[%emt 00:00:18]} b4 {[%clk 00:12:16]}
{[%emt 00:01:52]} 10. a5 {[%clk 00:11:39]} {[%emt 00:01:22]} O-O {[%clk
00:12:19]} {[%emt 00:00:02]} 11. Nbd2 {[%clk 00:11:14]} {[%emt 00:00:30]} Ba7
{[%clk 00:12:01]} {[%emt 00:00:23]} 12. h3 {[%clk 00:10:00]} {[%emt 00:01:18]}
h6 {[%clk 00:11:18]} {[%emt 00:00:48]} 13. Re1 {[%clk 00:09:22]} {[%emt
00:00:42]} Re8 {[%clk 00:09:54]} {[%emt 00:01:29]} 14. Nc4 {[%clk 00:07:35]}
{[%emt 00:01:52]} bxc3 {[%clk 00:06:30]} {[%emt 00:03:29]} 15. bxc3 {[%clk
00:07:37]} {[%emt 00:00:02]} Be6 {[%clk 00:05:42]} {[%emt 00:00:53]} 16. Ba4
{[%clk 00:06:11]} {[%emt 00:01:31]} Bd7 {[%clk 00:05:46]} 17. Bc2 {[%clk
00:05:52]} {[%emt 00:00:24]} Ne7 {[%clk 00:05:18]} {[%emt 00:00:34]} 18. d4
{[%clk 00:05:15]} {[%emt 00:00:42]} Ng6 {[%clk 00:05:05]} {[%emt 00:00:17]} 19.
Be3 {[%clk 00:04:39]} {[%emt 00:00:41]} exd4 {[%clk 00:04:39]} {[%emt
00:00:32]} 20. Bxd4 {[%clk 00:04:30]} {[%emt 00:00:14]} Bxd4 {[%clk 00:04:42]}
{[%emt 00:00:03]} 21. cxd4 {[%clk 00:04:07]} {[%emt 00:00:28]} Rb4 {[%clk
00:03:34]} {[%emt 00:01:13]} 22. Ncd2 {[%clk 00:03:40]} {[%emt 00:00:31]} Nh5
{[%clk 00:02:42]} {[%emt 00:00:57]} 23. Nf1 {[%clk 00:02:49]} {[%emt 00:00:56]}
Nh4 {[%clk 00:02:09]} {[%emt 00:00:38]} 24. N1h2 {[%clk 00:02:04]} {[%emt
00:00:50]} Nf4 {[%clk 00:01:00]} {[%emt 00:01:15]} 25. Nxh4 {[%clk 00:01:22]}
{[%emt 00:00:47]} Qxh4 {[%clk 00:01:03]} {[%emt 00:00:02]} 26. Ra3 {[%clk
00:01:17]} {[%emt 00:00:10]} Qf6 {[%clk 00:00:12]} {[%emt 00:00:56]} 27. e5
{[%clk 00:00:50]} {[%emt 00:00:32]} dxe5 {[%clk 00:00:10]} {[%emt 00:00:08]} 28.
dxe5 {[%clk 00:00:53]} {[%emt 00:00:02]} Qc6 {[%clk 00:00:09]} {[%emt
00:00:06]} 29. Rg3 {[%clk 00:00:36]} {[%emt 00:00:22]} Be6 {[%clk 00:00:07]}
{[%emt 00:00:07]} 30. Ng4 {[%clk 00:00:30]} {[%emt 00:00:11]} Kh8 {[%clk
00:00:08]} {[%emt 00:00:04]} 31. Qd2 {[%clk 00:00:19]} {[%emt 00:00:16]} Reb8
{[%clk 00:00:08]} {[%emt 00:00:05]} 32. Rf3 {[%clk 00:00:16]} {[%emt 00:00:08]}
Nxg2 {[%clk 00:00:07]} {[%emt 00:00:06]} 33. Qd3 {[%clk 00:00:13]} {[%emt
00:00:08]} g6 {[%clk 00:00:07]} {[%emt 00:00:04]} 34. Kxg2 {[%clk 00:00:17]}
{[%emt 00:00:01]} Bf5 {[%clk 00:00:07]} {[%emt 00:00:05]} 35. Qe3 {[%clk
00:00:18]} {[%emt 00:00:03]} Bxg4 {[%clk 00:00:08]} {[%emt 00:00:05]} 36. hxg4
{[%clk 00:00:16]} {[%emt 00:00:07]} Qxc2 {[%clk 00:00:08]} {[%emt 00:00:05]} 37.
Qxh6+ {[%clk 00:00:19]} {[%emt 00:00:02]} Kg8 {[%clk 00:00:12]} {[%emt
00:00:01]} 38. Rh3 {[%clk 00:00:18]} {[%emt 00:00:06]} Rxg4+ {[%clk 00:00:16]}
39. Kh1 {[%clk 00:00:21]} {[%emt 00:00:02]} f5 {[%clk 00:00:07]} {[%emt
00:00:14]} 40. Qh8+ {[%clk 00:00:16]} {[%emt 00:00:10]} Kf7 {[%clk 00:00:11]}
{[%emt 00:00:01]} 41. Qf6+ {[%clk 00:00:19]} {[%emt 00:00:01]} Ke8 {[%clk
00:00:13]} {[%emt 00:00:04]} 42. Qe6+ {[%clk 00:00:21]} {[%emt 00:00:03]} Kf8
{[%clk 00:00:15]} {[%emt 00:00:03]} 43. Rh8+ {[%clk 00:00:25]} {[%emt
00:00:01]} Kg7 {[%clk 00:00:18]} {[%emt 00:00:01]} 44. Qf6# {[%clk 00:00:29]}
1-0

[Event "Rapid Tournament (RAP)"]
[Site "Biel, Switzerland"]
[Date "2026.07.12"]
[Round "4.5"]
[White "Alexakis, Dimitris"]
[Black "Balabayeva, Xeniya"]
[Result "1-0"]
[TimeControl "15 + 5"]
[WhiteTitle "-"]
[BlackTitle "-"]
[WhiteFideId "4277023"]
[BlackFideId "13719688"]
[WhiteElo "2518"]
[BlackElo "2291"]

1. e4 {[%clk 00:13:00]} {[%emt 00:02:10]} e5 {[%clk 00:15:03]} {[%emt
00:00:08]} 2. Nf3 {[%clk 00:12:58]} {[%emt 00:00:07]} Nc6 {[%clk 00:15:06]}
{[%emt 00:00:02]} 3. Bb5 {[%clk 00:13:01]} {[%emt 00:00:02]} a6 {[%clk
00:15:10]} {[%emt 00:00:02]} 4. Ba4 {[%clk 00:13:05]} {[%emt 00:00:01]} Nf6
{[%clk 00:15:13]} {[%emt 00:00:02]} 5. O-O {[%clk 00:13:07]} {[%emt 00:00:02]}
Be7 {[%clk 00:14:59]} {[%emt 00:00:20]} 6. Bxc6 {[%clk 00:12:48]} {[%emt
00:00:23]} dxc6 {[%clk 00:14:59]} {[%emt 00:00:05]} 7. d3 {[%clk 00:12:51]}
{[%emt 00:00:02]} Qd6 {[%clk 00:14:47]} {[%emt 00:00:17]} 8. b3 {[%clk
00:11:52]} {[%emt 00:01:04]} Be6 {[%clk 00:11:56]} {[%emt 00:02:56]} 9. a4
{[%clk 00:11:12]} {[%emt 00:00:45]} O-O {[%clk 00:11:16]} {[%emt 00:00:45]} 10.
h3 {[%clk 00:10:24]} {[%emt 00:00:53]} Rad8 {[%clk 00:09:57]} {[%emt 00:01:25]}
11. Nbd2 {[%clk 00:09:59]} {[%emt 00:00:30]} Nd7 {[%clk 00:09:15]} {[%emt
00:00:47]} 12. a5 {[%clk 00:09:46]} {[%emt 00:00:17]} f6 {[%clk 00:08:05]}
{[%emt 00:01:15]} 13. Kh1 {[%clk 00:08:36]} {[%emt 00:01:16]} Nc5 {[%clk
00:07:37]} {[%emt 00:00:34]} 14. Ba3 {[%clk 00:05:33]} {[%emt 00:03:08]} Qd7
{[%clk 00:06:18]} {[%emt 00:01:24]} 15. Rg1 {[%clk 00:05:24]} {[%emt 00:00:13]}
Bf7 {[%clk 00:06:06]} {[%emt 00:00:17]} 16. Nh4 {[%clk 00:04:34]} {[%emt
00:00:55]} g6 {[%clk 00:05:27]} {[%emt 00:00:44]} 17. Nhf3 {[%clk 00:04:33]}
{[%emt 00:00:06]} Ne6 {[%clk 00:05:21]} {[%emt 00:00:12]} 18. Bxe7 {[%clk
00:04:00]} {[%emt 00:00:37]} Qxe7 {[%clk 00:05:20]} {[%emt 00:00:06]} 19. Nf1
{[%clk 00:03:52]} {[%emt 00:00:13]} Nf4 {[%clk 00:04:52]} {[%emt 00:00:33]} 20.
Ne3 {[%clk 00:03:44]} {[%emt 00:00:13]} Be6 {[%clk 00:04:32]} {[%emt 00:00:25]}
21. Qe1 {[%clk 00:02:32]} {[%emt 00:01:17]} Kh8 {[%clk 00:03:54]} {[%emt
00:00:43]} 22. Nh2 {[%clk 00:02:11]} {[%emt 00:00:26]} Rg8 {[%clk 00:02:32]}
{[%emt 00:01:27]} 23. f3 {[%clk 00:01:26]} {[%emt 00:00:50]} h5 {[%clk
00:01:34]} {[%emt 00:01:03]} 24. Rd1 {[%clk 00:00:58]} {[%emt 00:00:33]} Rg7
{[%clk 00:00:59]} {[%emt 00:00:40]} 25. Nhf1 {[%clk 00:00:53]} {[%emt
00:00:10]} Qd7 {[%clk 00:00:43]} {[%emt 00:00:21]} 26. Qf2 {[%clk 00:00:32]}
{[%emt 00:00:26]} Qd4 {[%clk 00:00:35]} {[%emt 00:00:13]} 27. Ng3 {[%clk
00:00:20]} {[%emt 00:00:18]} Qc5 {[%clk 00:00:20]} {[%emt 00:00:21]} 28. Ra1
{[%clk 00:00:17]} {[%emt 00:00:07]} Rf8 {[%clk 00:00:09]} {[%emt 00:00:15]} 29.
Ne2 {[%clk 00:00:18]} {[%emt 00:00:05]} g5 {[%clk 00:00:09]} {[%emt 00:00:06]}
30. Rgf1 {[%clk 00:00:13]} {[%emt 00:00:09]} Rfg8 {[%clk 00:00:11]} {[%emt
00:00:03]} 31. Ng3 {[%clk 00:00:13]} {[%emt 00:00:05]} Rd7 {[%clk 00:00:08]}
{[%emt 00:00:08]} 32. Ngf5 {[%clk 00:00:13]} {[%emt 00:00:05]} h4 {[%clk
00:00:10]} {[%emt 00:00:03]} 33. b4 {[%clk 00:00:09]} {[%emt 00:00:10]} Qf8
{[%clk 00:00:13]} {[%emt 00:00:01]} 34. Rfd1 {[%clk 00:00:09]} {[%emt
00:00:05]} c5 {[%clk 00:00:10]} {[%emt 00:00:08]} 35. bxc5 {[%clk 00:00:09]}
{[%emt 00:00:04]} Qxc5 {[%clk 00:00:14]} {[%emt 00:00:01]} 36. Rab1 {[%clk
00:00:13]} {[%emt 00:00:02]} b6 {[%clk 00:00:13]} {[%emt 00:00:06]} 37. axb6
{[%clk 00:00:07]} {[%emt 00:00:11]} cxb6 {[%clk 00:00:16]} {[%emt 00:00:01]} 38.
Qf1 {[%clk 00:00:10]} {[%emt 00:00:02]} a5 {[%clk 00:00:18]} {[%emt 00:00:03]}
39. c4 {[%clk 00:00:12]} {[%emt 00:00:02]} Ra8 {[%clk 00:00:10]} {[%emt
00:00:14]} 40. Rb5 {[%clk 00:00:13]} {[%emt 00:00:04]} Qc6 {[%clk 00:00:13]}
{[%emt 00:00:02]} 41. Rdb1 {[%clk 00:00:11]} {[%emt 00:00:06]} Ra6 {[%clk
00:00:14]} {[%emt 00:00:04]} 42. Nd5 {[%clk 00:00:08]} {[%emt 00:00:07]} Bxd5
{[%clk 00:00:16]} {[%emt 00:00:03]} 43. exd5 {[%clk 00:00:10]} {[%emt
00:00:04]} Qc7 {[%clk 00:00:17]} {[%emt 00:00:04]} 44. d6 {[%clk 00:00:09]}
{[%emt 00:00:06]} Qc6 {[%clk 00:00:20]} {[%emt 00:00:02]} 45. c5 {[%clk
00:00:08]} {[%emt 00:00:06]} bxc5 {[%clk 00:00:20]} {[%emt 00:00:04]} 46. Rb8+
{[%clk 00:00:08]} {[%emt 00:00:06]} Kh7 {[%emt 00:00:02]} 47. Qc1 {[%clk
00:00:12]} Nxh3 {[%clk 00:00:11]} {[%emt 00:00:18]} 48. Qc4 {[%clk 00:00:11]}
{[%emt 00:00:06]} 1-0

[Event "Rapid Tournament (RAP)"]
[Site "Biel, Switzerland"]
[Date "2026.07.12"]
[Round "4.6"]
[White "Dong, Hongfu"]
[Black "Acs, Peter"]
[Result "1-0"]
[TimeControl "15 + 5"]
[WhiteTitle "-"]
[BlackTitle "-"]
[WhiteFideId "8626960"]
[BlackFideId "708020"]
[WhiteElo "2271"]
[BlackElo "2474"]

1. e4 {[%clk 00:15:08]} {[%emt 00:00:02]} c5 {[%clk 00:15:08]} {[%emt
00:00:02]} 2. Nf3 {[%clk 00:15:12]} {[%emt 00:00:03]} e6 {[%clk 00:15:08]}
{[%emt 00:00:04]} 3. d4 {[%clk 00:15:15]} {[%emt 00:00:03]} cxd4 {[%clk
00:15:08]} {[%emt 00:00:04]} 4. Nxd4 {[%clk 00:15:18]} {[%emt 00:00:02]} a6
{[%clk 00:15:06]} {[%emt 00:00:07]} 5. Nc3 {[%clk 00:15:11]} {[%emt 00:00:12]}
b5 {[%clk 00:15:05]} {[%emt 00:00:05]} 6. g3 {[%clk 00:15:14]} {[%emt
00:00:03]} Bb7 {[%clk 00:15:01]} {[%emt 00:00:09]} 7. Bg2 {[%clk 00:15:18]}
{[%emt 00:00:01]} Nf6 {[%clk 00:14:47]} {[%emt 00:00:19]} 8. O-O {[%clk
00:15:19]} {[%emt 00:00:03]} b4 {[%clk 00:14:13]} {[%emt 00:00:40]} 9. Na4
{[%clk 00:15:23]} {[%emt 00:00:01]} Bxe4 {[%clk 00:13:54]} {[%emt 00:00:23]} 10.
Bxe4 {[%clk 00:15:26]} {[%emt 00:00:03]} Nxe4 {[%clk 00:13:55]} {[%emt
00:00:03]} 11. c4 {[%clk 00:15:30]} {[%emt 00:00:02]} Nc5 {[%clk 00:13:26]}
{[%emt 00:00:34]} 12. Be3 {[%clk 00:15:32]} {[%emt 00:00:02]} Nxa4 {[%clk
00:11:39]} {[%emt 00:01:52]} 13. Qxa4 {[%clk 00:15:35]} {[%emt 00:00:02]} Be7
{[%clk 00:11:42]} {[%emt 00:00:02]} 14. c5 {[%clk 00:12:36]} {[%emt 00:03:04]}
a5 {[%clk 00:10:51]} {[%emt 00:00:55]} 15. Rfd1 {[%clk 00:11:47]} {[%emt
00:00:54]} Qc8 {[%clk 00:08:55]} {[%emt 00:02:02]} 16. a3 {[%clk 00:06:15]}
{[%emt 00:05:37]} bxa3 {[%clk 00:08:06]} {[%emt 00:00:54]} 17. b4 {[%clk
00:06:19]} {[%emt 00:00:01]} O-O {[%clk 00:07:33]} {[%emt 00:00:38]} 18. Nb3
{[%clk 00:05:26]} {[%emt 00:00:58]} Nc6 {[%clk 00:04:24]} {[%emt 00:03:13]} 19.
b5 {[%clk 00:04:08]} {[%emt 00:01:24]} Nb4 {[%clk 00:04:27]} {[%emt 00:00:02]}
20. b6 {[%clk 00:01:56]} {[%emt 00:02:17]} Rd8 {[%clk 00:02:56]} {[%emt
00:01:36]} 21. Nxa5 {[%clk 00:01:31]} {[%emt 00:00:29]} Nd5 {[%clk 00:01:05]}
{[%emt 00:01:56]} 22. b7 {[%clk 00:00:29]} {[%emt 00:01:07]} Qxb7 {[%clk
00:01:00]} {[%emt 00:00:10]} 23. Nxb7 {[%clk 00:00:33]} Rxa4 {[%clk 00:01:03]}
{[%emt 00:00:02]} 24. Nxd8 {[%clk 00:00:37]} Bxd8 {[%clk 00:01:00]} {[%emt
00:00:08]} 25. Rd3 {[%clk 00:00:42]} a2 {[%clk 00:00:41]} {[%emt 00:00:24]} 26.
Rd2 {[%clk 00:00:46]} Nc3 {[%clk 00:00:09]} {[%emt 00:00:37]} 27. Rxd7 {[%clk
00:00:46]} {[%emt 00:00:06]} Bf6 {[%clk 00:00:12]} {[%emt 00:00:01]} 28. c6
{[%clk 00:00:35]} {[%emt 00:00:15]} h5 {[%clk 00:00:16]} {[%emt 00:00:01]} 29.
c7 {[%clk 00:00:38]} {[%emt 00:00:03]} Rc4 {[%clk 00:00:19]} {[%emt 00:00:02]}
30. Rd8+ {[%clk 00:00:24]} {[%emt 00:00:19]} Kh7 {[%clk 00:00:23]} 31. c8=Q
{[%clk 00:00:27]} {[%emt 00:00:02]} Rxc8 {[%clk 00:00:23]} {[%emt 00:00:05]} 32.
Rxc8 {[%clk 00:00:31]} {[%emt 00:00:01]} Ne2+ {[%clk 00:00:25]} {[%emt
00:00:02]} 33. Kf1 {[%clk 00:00:35]} {[%emt 00:00:01]} Bxa1 {[%clk 00:00:27]}
{[%emt 00:00:02]} 34. Ra8 {[%clk 00:00:38]} {[%emt 00:00:02]} Nc3 {[%clk
00:00:09]} {[%emt 00:00:23]} 35. Bd4 {[%clk 00:00:39]} {[%emt 00:00:03]} Bb2
{[%clk 00:00:11]} {[%emt 00:00:05]} 36. Bxc3 {[%clk 00:00:43]} {[%emt
00:00:01]} Bxc3 {[%clk 00:00:13]} {[%emt 00:00:03]} 37. Rxa2 {[%clk 00:00:47]}
{[%emt 00:00:01]} g6 {[%clk 00:00:15]} {[%emt 00:00:03]} 38. Kg2 {[%clk
00:00:51]} {[%emt 00:00:01]} Bd4 {[%clk 00:00:17]} {[%emt 00:00:03]} 39. Kf3
{[%clk 00:00:55]} Kg7 {[%clk 00:00:20]} {[%emt 00:00:03]} 40. Ke4 {[%clk
00:00:59]} Bc5 {[%clk 00:00:23]} {[%emt 00:00:02]} 41. Rc2 {[%clk 00:01:03]}
Bb6 {[%clk 00:00:26]} {[%emt 00:00:01]} 42. f3 {[%clk 00:01:07]} {[%emt
00:00:01]} Ba7 {[%clk 00:00:27]} {[%emt 00:00:04]} 43. Rc7 {[%clk 00:01:11]}
{[%emt 00:00:01]} Bb6 {[%clk 00:00:29]} {[%emt 00:00:03]} 44. Rb7 {[%clk
00:01:15]} Bg1 {[%clk 00:00:27]} {[%emt 00:00:07]} 45. Rb2 {[%clk 00:01:17]}
{[%emt 00:00:04]} Kf6 {[%clk 00:00:17]} {[%emt 00:00:15]} 46. h4 {[%clk
00:01:20]} {[%emt 00:00:02]} Ba7 {[%clk 00:00:10]} {[%emt 00:00:12]} 47. g4
{[%clk 00:01:19]} {[%emt 00:00:07]} hxg4 {[%clk 00:00:07]} {[%emt 00:00:09]} 48.
fxg4 {[%clk 00:01:23]} Kg7 {[%clk 00:00:09]} {[%emt 00:00:02]} 49. Ra2 {[%clk
00:01:26]} {[%emt 00:00:03]} Bb6 {[%clk 00:00:14]} {[%emt 00:00:01]} 50. Rb2
{[%clk 00:01:25]} {[%emt 00:00:05]} Bd8 {[%clk 00:00:16]} {[%emt 00:00:03]} 51.
g5 {[%clk 00:01:16]} {[%emt 00:00:14]} Bc7 {[%clk 00:00:19]} {[%emt 00:00:02]}
52. Kf3 {[%clk 00:01:19]} {[%emt 00:00:02]} Bd6 {[%clk 00:00:23]} {[%emt
00:00:01]} 53. Kg4 {[%clk 00:01:23]} Be5 {[%clk 00:00:27]} 54. Rb7 {[%clk
00:01:27]} Bd6 {[%clk 00:00:31]} {[%emt 00:00:01]} 55. h5 {[%clk 00:01:28]}
{[%emt 00:00:04]} gxh5+ {[%clk 00:00:31]} {[%emt 00:00:04]} 56. Kxh5 {[%clk
00:01:32]} Kg8 {[%clk 00:00:16]} {[%emt 00:00:19]} 57. Rd7 {[%clk 00:01:36]}
{[%emt 00:00:02]} Bc5 {[%clk 00:00:17]} {[%emt 00:00:04]} 58. g6 {[%clk
00:01:33]} {[%emt 00:00:09]} fxg6+ {[%clk 00:00:17]} {[%emt 00:00:04]} 59. Kxg6
{[%clk 00:01:37]} Kf8 {[%clk 00:00:16]} {[%emt 00:00:06]} 60. Kf6 {[%clk
00:01:41]} {[%emt 00:00:01]} Ke8 {[%clk 00:00:06]} {[%emt 00:00:15]} 61. Kxe6
{[%clk 00:01:45]} {[%emt 00:00:01]} Kf8 {[%clk 00:00:00]} {[%emt 00:00:08]} 1-0

[Event "Rapid Tournament (RAP)"]
[Site "Biel, Switzerland"]
[Date "2026.07.12"]
[Round "4.7"]
[White "Gopal, G.N."]
[Black "Shukhman, Anna"]
[Result "1-0"]
[TimeControl "15 + 5"]
[WhiteTitle "-"]
[BlackTitle "-"]
[WhiteFideId "5015693"]
[BlackFideId "54180058"]
[WhiteElo "2471"]
[BlackElo "2272"]

1. e4 {[%clk 00:15:07]} c5 {[%clk 00:15:08]} {[%emt 00:00:01]} 2. Nf3 {[%clk
00:15:11]} {[%emt 00:00:02]} d6 {[%clk 00:15:12]} {[%emt 00:00:04]} 3. d4
{[%clk 00:15:14]} cxd4 {[%clk 00:15:16]} 4. Nxd4 {[%clk 00:15:17]} {[%emt
00:00:02]} Nf6 {[%clk 00:15:20]} {[%emt 00:00:01]} 5. Nc3 {[%clk 00:15:20]}
{[%emt 00:00:03]} a6 {[%clk 00:15:24]} 6. Be3 {[%clk 00:15:24]} e5 {[%clk
00:15:27]} {[%emt 00:00:02]} 7. Nf3 {[%clk 00:15:27]} {[%emt 00:00:01]} Qc7
{[%clk 00:15:13]} {[%emt 00:00:20]} 8. a4 {[%clk 00:15:24]} {[%emt 00:00:08]}
Be7 {[%clk 00:14:32]} {[%emt 00:00:46]} 9. Be2 {[%clk 00:15:10]} {[%emt
00:00:19]} Be6 {[%clk 00:13:42]} {[%emt 00:00:55]} 10. O-O {[%clk 00:12:40]}
{[%emt 00:02:34]} O-O {[%clk 00:13:39]} {[%emt 00:00:09]} 11. Nd5 {[%clk
00:09:07]} {[%emt 00:03:38]} Nxd5 {[%clk 00:13:02]} {[%emt 00:00:41]} 12. exd5
{[%clk 00:09:12]} Bf5 {[%clk 00:13:06]} {[%emt 00:00:02]} 13. c4 {[%clk
00:09:00]} {[%emt 00:00:17]} a5 {[%clk 00:12:53]} {[%emt 00:00:17]} 14. c5
{[%clk 00:07:57]} {[%emt 00:01:07]} dxc5 {[%clk 00:11:23]} {[%emt 00:01:36]} 15.
Nd2 {[%clk 00:08:01]} {[%emt 00:00:01]} Rd8 {[%clk 00:09:48]} {[%emt 00:01:40]}
16. Nc4 {[%clk 00:06:45]} {[%emt 00:01:22]} Be4 {[%clk 00:09:51]} 17. Bf3
{[%clk 00:06:17]} {[%emt 00:00:33]} Bxf3 {[%clk 00:09:54]} {[%emt 00:00:02]} 18.
Qxf3 {[%clk 00:06:15]} {[%emt 00:00:07]} Nd7 {[%clk 00:09:07]} {[%emt
00:00:52]} 19. Rad1 {[%clk 00:05:54]} {[%emt 00:00:26]} Bd6 {[%clk 00:05:35]}
{[%emt 00:03:38]} 20. Na3 {[%clk 00:00:51]} {[%emt 00:05:08]} Nf8 {[%clk
00:04:00]} {[%emt 00:01:39]} 21. Nb5 {[%clk 00:00:54]} {[%emt 00:00:02]} Qd7
{[%clk 00:03:55]} {[%emt 00:00:10]} 22. h4 {[%clk 00:00:25]} {[%emt 00:00:33]}
Ng6 {[%clk 00:02:48]} {[%emt 00:01:13]} 23. h5 {[%clk 00:00:22]} {[%emt
00:00:09]} Nh4 {[%clk 00:02:44]} {[%emt 00:00:09]} 24. Qe4 {[%clk 00:00:21]}
{[%emt 00:00:05]} Nf5 {[%clk 00:02:41]} {[%emt 00:00:08]} 25. Nxd6 {[%clk
00:00:16]} {[%emt 00:00:10]} Nxe3 {[%clk 00:02:29]} {[%emt 00:00:17]} 26. Nxf7
{[%clk 00:00:12]} {[%emt 00:00:09]} Qxf7 {[%clk 00:01:36]} {[%emt 00:00:59]} 27.
fxe3 {[%clk 00:00:16]} Qxh5 {[%clk 00:01:39]} {[%emt 00:00:02]} 28. Rd2 {[%clk
00:00:21]} Ra6 {[%clk 00:00:18]} {[%emt 00:01:27]} 29. Rf5 {[%clk 00:00:18]}
{[%emt 00:00:07]} Qh6 {[%clk 00:00:14]} {[%emt 00:00:09]} 30. Rxe5 {[%clk
00:00:21]} {[%emt 00:00:02]} Rf8 {[%clk 00:00:13]} {[%emt 00:00:06]} 31. Re8
{[%clk 00:00:17]} {[%emt 00:00:09]} Raf6 {[%clk 00:00:17]} 32. Rxf8+ {[%clk
00:00:20]} {[%emt 00:00:02]} Rxf8 {[%clk 00:00:21]} {[%emt 00:00:02]} 33. d6
{[%clk 00:00:23]} {[%emt 00:00:02]} Qf6 {[%clk 00:00:11]} {[%emt 00:00:14]} 34.
d7 {[%clk 00:00:26]} {[%emt 00:00:02]} Rd8 {[%clk 00:00:10]} {[%emt 00:00:07]}
35. Qe8+ {[%clk 00:00:26]} {[%emt 00:00:05]} Qf8 {[%clk 00:00:14]} {[%emt
00:00:01]} 36. Qe5 {[%clk 00:00:29]} Qf7 {[%clk 00:00:16]} {[%emt 00:00:03]} 37.
Qxc5 {[%clk 00:00:30]} {[%emt 00:00:05]} h6 {[%clk 00:00:14]} {[%emt 00:00:06]}
38. e4 {[%clk 00:00:27]} {[%emt 00:00:08]} Qf4 {[%clk 00:00:08]} {[%emt
00:00:12]} 39. Qd4 {[%clk 00:00:23]} {[%emt 00:00:07]} Qg3 {[%clk 00:00:10]}
{[%emt 00:00:05]} 40. Rd1 {[%clk 00:00:20]} {[%emt 00:00:08]} Qg4 {[%clk
00:00:08]} {[%emt 00:00:07]} 41. Qd5+ {[%clk 00:00:22]} {[%emt 00:00:02]} Kh8
{[%clk 00:00:10]} {[%emt 00:00:03]} 42. e5 {[%clk 00:00:25]} {[%emt 00:00:02]}
Qf4 {[%clk 00:00:12]} {[%emt 00:00:03]} 43. e6 {[%clk 00:00:24]} {[%emt
00:00:07]} Qe3+ {[%clk 00:00:16]} 44. Kh1 {[%clk 00:00:27]} Qg3 {[%clk
00:00:14]} {[%emt 00:00:07]} 45. Qe4 {[%clk 00:00:28]} {[%emt 00:00:05]} Qb3
{[%clk 00:00:11]} {[%emt 00:00:08]} 46. Re1 {[%clk 00:00:28]} {[%emt 00:00:04]}
Qxb2 {[%clk 00:00:09]} {[%emt 00:00:07]} 47. e7 {[%clk 00:00:32]} {[%emt
00:00:01]} 1-0